[Event "Vojvodina Open 2024-A 2024"]
[Site "Novi Sad"]
[Date "2024.06.26"]
[Round "3.1"]
[White "Kalinin, Alexander"]
[Black "Safarli, Eltaj"]
[Result "0-1"]
[ECO "E51"]
[WhiteElo "2459"]
[BlackElo "2595"]
[Annotator "TA"]
[PlyCount "68"]
[EventDate "2024.06.03"]
[EventType "swiss"]
[EventCountry "SRB"]
[SourceTitle "playchess.com"]
[Source "ChessBase"]
[SourceQuality "1"]
[TimeControl "40/5400+30:900+30"]

{[%evp 12,68,0,0,10,3,13,29,35,26,21,30,23,25,29,23,32,31,27,0,0,0,0,0,7,0,8,0,0,-3,0,0,0,0,0,0,20,-1,-5,-8,-3,-113,-104,-212,-222,-214,-203,-232,-225,-233,-233,-240,-212,-550,-534,-722,-714,-848,-772]} 1. d4 {[%emt 0:06:27]} Nf6 {[%emt 0:00:07]} 2. Nf3 {[%emt 0:00:07]} e6 {[%emt 0:00:54]} 3. c4 {[%emt 0:00:09]} d5 {[%emt 0:00:09]} 4. Nc3 {[%emt 0:00:21]} Bb4 {[%emt 0:01:20]} 5. e3 {[%emt 0:01:03]} O-O {[%emt 0:00:40]} 6. Bd3 {[%emt 0:00:04]} dxc4 {[%emt 0:03:19]} 7. Bxc4 {[%emt 1:25:49]} b6 {[%emt 0:00:26]} 8. O-O {[%emt 0:00:00]} Bb7 {[%emt 0:00:04]} 9. Qe2 {[%emt 0:00:00]} Nbd7 {[%emt 0:02:36] White has an edge.} 10. Rd1 {[%emt 0:00:00]} Qe7 {[%emt 0:00:21]} 11. a3 {[%emt 0:00:00]} Bxc3 {[%emt 0:00:13]} 12. bxc3 {[%emt 0:00:00]} Ne4 {[%emt 0:00:17]} 13. Bb2 {[%emt 0:00:00]} Nd6 {[%emt 0:00:28]} 14. Bd3 {[%emt 0:00:00]} e5 {[%emt 0:00:48] ...e4 is the strong threat.} 15. dxe5 {[%emt 0:00:00]} Nxe5 {[%emt 0:01:42]} 16. Nxe5 {[%emt 0:00:00]} Qxe5 {[%emt 0:00:05]} 17. c4 {[%emt 0:00:00]} Qg5 {[%emt 0:00:31][%csl Gb7][%cal Rg5g2]} 18. f3 {[%emt 0:00:00]} Rfe8 {[%emt 0:01:42]} 19. e4 {[%emt 0:00:00][%cal Oc4c5]} Ba6 {[%emt 0:00:12]} 20. Rac1 {[%emt 0:00:00][%cal Oc4c5]} Nb7 {[%emt 0:04:16][%cal Bd6b7,Bb7c5,Bc5d3][%mdl 32]} 21. Qf2 {[%emt 0:00:00]} Rad8 {[%emt 0:03:27]} 22. Bf1 $1 {[%emt 0:00:00]} Nc5 {[%emt 0:04:49]} 23. Rd5 {[%emt 0:00:00]} Rxd5 {[%emt 0:01:47]} 24. cxd5 {[%emt 0:00:00] Strongly threatening Rxc5.} Bxf1 {[%emt 0:00:12]} 25. Rxf1 {[%emt 0:00:00]} Nd3 {[%emt 0:00:32]} 26. Qe2 {[%emt 0:00:00]} (26. Qc2 $11 {keeps the balance.} Nxb2 27. Qxb2) 26... Qxd5 $17 {[%emt 0:02:31] Black is much more active.} 27. Qc2 {[%emt 0:00:00] [#] Against Qb3} (27. Rd1 $17 Qc5+ 28. Kf1 Nxb2 29. Qxb2) 27... Qc5+ $1 $19 {[%emt 0:04:29]} 28. Qxc5 {[%emt 0:00:00]} bxc5 {[%emt 0:01:45][%mdl 4096] Endgame. KRB-KRN} ({But not} 28... Nxc5 29. Rd1) 29. Bc3 {[%emt 0:00:00] [#]} Rb8 {[%emt 0:00:15] Wards off Rb1} 30. Rd1 {[%emt 0:00:00]} c4 {[%emt 0:00:20]} 31. a4 {[%emt 0:00:00]} Rb3 {[%emt 0:01:18]} 32. Be5 {[%emt 0:00:00]} (32. Be1 {is tougher.}) 32... Kf8 {[%emt 0:03:07] Black is clearly winning.} ({Weaker is} 32... Nxe5 33. Rd8#) 33. Bxc7 {[%emt 0:00:00] [#]} c3 $1 {[%emt 0:01:10]} 34. Rxd3 {[%emt 0:00:00]} (34. Rf1 c2) 34... c2 {[%emt 0:00:07] Weighted Error Value: White=0.46/Black=0.02 (flawless) .  Mistake:       	White=3     	---        Inaccurate:     	White=1     	---        OK:         	White=9     	Black=13     Best:        	White=1     	Black=4      Strong:       	White=1     	---} 0-1

[Event "Vojvodina Open 2024-A 2024"]
[Site "Novi Sad"]
[Date "2024.06.26"]
[Round "3.2"]
[White "Durucay, Uygar"]
[Black "Narayanan, Srinath"]
[Result "0-1"]
[ECO "A43"]
[WhiteElo "2026"]
[BlackElo "2533"]
[Annotator "TA"]
[PlyCount "62"]
[EventDate "2024.06.03"]
[EventType "swiss"]
[EventCountry "SRB"]
[SourceTitle "playchess.com"]
[Source "ChessBase"]
[SourceQuality "1"]
[TimeControl "40/5400+30:900+30"]

{[%evp 9,62,4,9,9,7,-25,-29,-25,-22,-25,-39,-47,-49,-49,-43,-47,-41,-56,-58,-48,-58,-58,-52,-180,-159,-185,-174,-177,-170,-170,-174,-181,-164,-180,-181,-150,-148,-359,-345,-356,-350,-394,-384,-400,-398,-655,-651,-624,-323,-643,-643,-859,-849,-966,-954]} 1. d4 {[%emt 0:00:03]} e6 {[%emt 0:02:38]} 2. Nf3 {[%emt 0:00:25]} c5 {[%emt 0:00:07]} 3. c3 {[%emt 0:02:43]} Nc6 {[%emt 0:00:57]} 4. Bf4 {[%emt 0:08:01]} Qb6 {[%emt 0:00:40]} 5. Qd2 {[%emt 0:01:40]} Nf6 {[%emt 0:01:01]} 6. e3 $1 {[%emt 0:00:45]} Nh5 {[%emt 0:01:24]} 7. Bg3 {[%emt 0:02:42]} Nxg3 {[%emt 0:07:26]} 8. hxg3 {[%emt 0:00:42] Black has an edge.} d5 {[%emt 0:00:09]} 9. Bd3 {[%emt 0:07:06]} g6 {[%emt 0:03:47]} 10. Qc2 {[%emt 0:12:12]} Bg7 {[%emt 0:02:09]} 11. Nbd2 {[%emt 0:01:05]} O-O {[%emt 0:09:50]} 12. O-O {[%emt 0:11:36]} Bd7 {[%emt 0:10:09]} 13. dxc5 {[%emt 0:08:10]} Qxc5 {[%emt 0:00:09]} 14. e4 {[%emt 0:00:10]} Rac8 {[%emt 0:03:42][%cal Oc6b4]} 15. Nb3 {[%emt 0:02:48]} Qb6 {[%emt 0:03:45][%cal Oc6b4]} 16. exd5 {[%emt 0:05:40] [#]} ({White should play} 16. Qe2 $15) 16... Nb4 $1 $19 {[%emt 0:01:31][%mdl 512]} 17. Qe2 {[%emt 0:04:48]} (17. Qb1 Nxd3) 17... Nxd3 {[%emt 0:00:41]} 18. Qxd3 {[%emt 0:00:09]} Bb5 {[%emt 0:00:14]} 19. Qe4 {[%emt 0:00:22]} exd5 {[%emt 0:05:23]} 20. Qxd5 {[%emt 0:02:27]} Rcd8 {[%emt 0:00:31]} 21. Qg5 {[%emt 0:00:32]} Bxf1 {[%emt 0:00:10]} 22. Rxf1 {[%emt 0:00:03]} Rfe8 {[%emt 0:00:14]} 23. Nfd4 {[%emt 0:00:36] Inhibits Re2. This costs White the game.} (23. Rb1 $17) 23... Bxd4 {[%emt 0:02:42]} 24. cxd4 {[%emt 0:09:08]} Re2 {[%emt 0:00:55]} 25. Rd1 {[%emt 0:02:13]} Rde8 {[%emt 0:00:09]} (25... Rxb2 26. Nc5 $19) 26. Nc5 {[%emt 0:00:27]} Qb5 {[%emt 0:07:11] [#] Against Nd7. ...Re1+ would now be deadly.} ({Not} 26... Rxb2 27. Nd7 Qd8 28. Nf6+ Kg7 (28... Kh8 29. Qc1 $11) 29. Nxe8+ Qxe8 30. a3 $15) 27. Qf4 $2 {[%emt 0:11:06]} (27. Qh4) 27... Re1+ {[%emt 0:03:08]} 28. Rxe1 {[%emt 0:00:10]} Rxe1+ {[%emt 0:00:05]} 29. Kh2 {[%emt 0:00:06]} b6 {[%emt 0:00:52] Black is clearly winning.} ({And not} 29... Qxb2 30. Nd3 Qe2 31. Nxe1 Qxe1 32. d5 $16) 30. Qb8+ {[%emt 0:02:31]} Re8 {[%emt 0:00:22]} 31. Qb7 {[%emt 0:00:19]} Qe2 {[%emt 0:01:04] Weighted Error Value: White=0.64/Black=0.01 (flawless) .  Loses game:     	White=1     	---        Mistake:       	White=2     	---        Inaccurate:     	White=2     	---        OK:         	White=4     	Black=12     Best:        	White=1     	Black=2      Brilliant:      	---       	Black=1} 0-1

[Event "Vojvodina Open 2024-A 2024"]
[Site "Novi Sad"]
[Date "2024.06.26"]
[Round "3.3"]
[White "Ljepic, Andrej"]
[Black "Bryakin, Mikhail"]
[Result "1/2-1/2"]
[ECO "B12"]
[WhiteElo "2267"]
[BlackElo "2469"]
[Annotator "TA"]
[PlyCount "190"]
[EventDate "2024.06.03"]
[EventType "swiss"]
[EventCountry "SRB"]
[SourceTitle "playchess.com"]
[Source "ChessBase"]
[SourceQuality "1"]
[TimeControl "40/5400+30:900+30"]

{[%evp 89,190,-57,-48,-54,-48,-56,-48,-127,-132,-138,-118,-136,-100,-122,-108,-124,-124,-141,-77,-125,-125,-125,-124,-125,-125,-165,-139,-274,-261,-260,-264,-257,-275,-274,-274,-264,-243,-212,-21,-235,-8,-14,-10,-11,-10,-11,-8,-20,-8,-8,-8,-8,-8,-8,-4,-8,-8,-8,0,0,0,0,0,0,0,0,0,0,65,65,65,65,65,65,65,65,65,65,65,65,65,65,65,65,65,65,65,65,65,65,66,66,68,68,70,70,70,74,74,70,70,0,0]} 1. e4 {[%emt 0:00:02]} c6 {[%emt 0:02:16]} 2. d4 {[%emt 0:00:04]} d5 {[%emt 0:00:07]} 3. e5 {[%emt 0:00:07]} Bf5 {[%emt 0:00:09]} 4. h4 {[%emt 0:00:05]} h5 {[%emt 0:00:07]} 5. Bd3 {[%emt 0:00:04]} Qd7 {[%emt 0:02:25]} 6. Ne2 {[%emt 0:03:28] B12: Caro-Kann: Advance Variation.} Nh6 {[%emt 0:03:13]} 7. Nf4 $146 {[%emt 0:08:15]} ({Predecessor:} 7. Bxh6 Rxh6 8. Bxf5 Qxf5 9. Ng3 Qg6 10. Nd2 Na6 11. c3 O-O-O 12. Nf3 c5 13. a3 {0-1 Da Fonseca Pinto,J (1762)-Casalaspro,M (2060) Pan American-ch U20 2023 (5.14)}) 7... g6 {[%emt 0:06:46]} 8. Bxf5 {[%emt 0:03:59]} Qxf5 {[%emt 0:00:44]} 9. Qe2 {[%emt 0:01:47]} Na6 {[%emt 0:01:00]} 10. c3 {[%emt 0:07:03]} Nc7 {[%emt 0:00:34]} 11. Na3 {[%emt 0:01:31]} Bg7 {[%emt 0:02:30]} 12. Nc2 {[%emt 0:01:11]} Qd7 {[%emt 0:04:22]} 13. e6 {[%emt 0:18:54]} Nxe6 {[%emt 0:00:41]} 14. Nxe6 {[%emt 0:00:03]} Qxe6 {[%emt 0:00:26]} 15. Qxe6 {[%emt 0:00:05]} fxe6 {[%emt 0:00:07]} 16. Bxh6 {[%emt 0:00:04]} Bxh6 {[%emt 0:01:04]} 17. g3 {[%emt 0:00:22]} Bg7 {[%emt 0:04:21]} 18. f4 {[%emt 0:00:53]} c5 {[%emt 0:00:04]} 19. O-O-O {[%emt 0:13:10]} b6 {[%emt 0:00:59]} 20. Rh2 {[%emt 0:02:50]} Kf7 {[%emt 0:01:21]} 21. Kb1 {[%emt 0:01:42]} Rac8 {[%emt 0:00:27]} 22. Ne3 {[%emt 0:02:44]} Rc6 {[%emt 0:01:30]} 23. Re2 {[%emt 0:01:00]} Bf6 {[%emt 0:01:23]} 24. a3 {[%emt 0:00:53]} Rhc8 {[%emt 0:05:10]} 25. Nc2 {[%emt 0:06:43]} a5 {[%emt 0:00:52]} 26. Rd3 {[%emt 0:02:18]} b5 {[%emt 0:01:39]} 27. Red2 {[%emt 0:08:27]} Bg7 {[%emt 0:03:11]} 28. b4 {[%emt 0:00:48]} cxb4 {[%emt 0:05:19]} 29. cxb4 {[%emt 0:00:51]} axb4 {[%emt 0:00:31]} 30. axb4 {[%emt 0:00:21]} Rc4 {[%emt 0:01:27]} 31. Kb2 {[%emt 0:02:17]} Ra8 {[%emt 0:00:45]} 32. Kb3 {[%emt 0:01:11]} Ra6 {[%emt 0:00:22]} 33. Kb2 {[%emt 0:01:51]} Bf8 {[%emt 0:02:45]} 34. Kb3 {[%emt 0:02:19]} Ra4 {[%emt 0:00:26]} 35. Rc3 {[%emt 0:04:09]} Bg7 {[%emt 0:01:14]} 36. Rcd3 {[%emt 0:02:48]} Ke8 {[%emt 0:00:22]} 37. Re2 {[%emt 0:01:08]} Kd7 {[%emt 0:00:09]} 38. Red2 {[%emt 0:00:37]} Bf8 {[%emt 0:00:06]} 39. Rc3 {[%emt 0:00:46]} Ra6 {[%emt 0:01:05]} 40. Rcd3 {[%emt 0:00:00]} Ra8 {[%emt 0:00:00]} 41. Rf3 {[%emt 0:04:34]} Bg7 {[%emt 0:09:45]} 42. Rfd3 {[%emt 0:00:43]} Bh6 {[%emt 0:02:56]} 43. Re3 {[%emt 0:02:33]} Bg7 {[%emt 0:04:37]} 44. Red3 {[%emt 0:01:27]} e5 {[%emt 0:01:07]} 45. dxe5 {[%emt 0:01:36]} e6 {[%emt 0:00:35]} 46. Rd4 {[%emt 0:04:28]} Bf8 {[%emt 0:00:43]} 47. Rd1 {[%emt 0:03:34]} Be7 {[%emt 0:02:18]} (47... Ra7 {feels hotter.} 48. Na3 Kc6 49. Nc2 Be7) 48. Rxc4 {[%emt 0:02:47]} (48. Na3 $1 $15 Kc6 (48... Rxd4 49. Rxd4 Ra6 50. Nc2 $11) 49. Nc2) 48... bxc4+ $17 {[%emt 0:00:02]} 49. Kc3 {[%emt 0:00:05]} Ra2 {[%emt 0:03:11]} 50. Rd2 {[%emt 0:01:10]} Bd8 {[%emt 0:00:46]} 51. Rg2 {[%emt 0:00:11]} Ke7 {[%emt 0:02:02]} 52. Re2 {[%emt 0:00:31]} Bb6 {[%emt 0:00:18]} 53. Rg2 {[%emt 0:00:05]} Ke8 {[%emt 0:01:05]} (53... Ra8 $142 54. Rh2 Kd8) 54. Re2 {[%emt 0:01:19]} (54. g4 $142) 54... Ra8 $17 {[%emt 0:08:35]} 55. Rg2 {[%emt 0:00:17]} Ke7 {[%emt 0:33:01]} 56. Re2 {[%emt 0:00:16]} Kd7 {[%emt 0:00:00]} 57. Rg2 {[%emt 0:00:18]} Kc6 {[%emt 0:00:00]} 58. g4 {[%emt 0:00:11]} (58. Re2 $17) 58... Rf8 $1 $19 {[%emt 0:00:00]} 59. gxh5 {[%emt 0:00:39]} gxh5 {[%emt 0:00:00]} (59... Rxf4 $2 {too greedy.} 60. hxg6 (60. Rxg6 $2 Kb5 $19) 60... Bc7 (60... Rxh4 $2 61. g7 $18) 61. Nd4+ Kd7 62. g7 Bxe5 63. g8=Q $18 (63. g8=R Bxd4+ 64. Kd2 Rf1 $17)) 60. Rg6 {[%emt 0:00:18]} Kd7 $1 {[%emt 0:00:00]} (60... Rxf4 61. Rxe6+ Kc7 62. Rd6 $17) 61. Rg7+ {[%emt 0:00:20]} Kc8 $1 {[%emt 0:00:00]} 62. Re7 {[%emt 0:00:57]} Rxf4 {[%emt 0:00:00]} 63. Rxe6 {[%emt 0:00:03] [#]} Rf3+ $2 {[%emt 0:00:00]} (63... Bc7 $1 $19 {[%cal Oc8d7] Hoping for ...Kd7!} 64. Kd2 Rxh4) 64. Kb2 $2 {[%emt 0:00:42] [#]} (64. Kd2 $11 Rd3+ 65. Ke2) 64... Rb3+ $2 {[%emt 0:00:00]} (64... Bc7 $1 $19 {Threatens to win with ...Kd7.} 65. Nd4 Kd7 66. Nxf3 Kxe6 67. Ng5+ Kxe5) 65. Kc1 $11 {[%emt 0:00:29]} Bc7 {[%emt 0:00:00]} 66. Rc6 {[%emt 0:00:41]} Kb7 {[%emt 0:00:00]} 67. Rc5 {[%emt 0:00:05]} Rd3 {[%emt 0:00:00]} 68. Ne1 {[%emt 0:01:01]} Re3 {[%emt 0:00:00]} 69. Kd2 $1 {[%emt 0:00:13]} Rxe5 {[%emt 0:00:00]} 70. Nf3 {[%emt 0:00:06]} Rf5 {[%emt 0:00:00]} 71. Nd4 {[%emt 0:01:19]} Bf4+ {[%emt 0:00:00]} 72. Kd1 $1 {[%emt 0:00:26]} Re5 {[%emt 0:00:11]} 73. Nc6 $1 {[%emt 0:00:09]} Re4 {[%emt 0:03:15]} 74. Na5+ $1 {[%emt 0:00:07]} Kb6 {[%emt 0:00:07]} 75. Rxd5 {[%emt 0:00:04]} c3 {[%emt 0:01:02]} 76. Kc2 {[%emt 0:00:42]} Bg3 {[%emt 0:01:14]} 77. Rxh5 {[%emt 0:02:44]} Be1 {[%emt 0:00:32]} 78. Re5 {[%emt 0:00:00]} Rxh4 {[%emt 0:01:47]} (78... Rxe5 $11 79. Nc4+ Kb5 80. Nxe5 Bxh4) 79. Rxe1 $14 {[%emt 0:00:00]} Rxb4 {[%emt 0:00:04]} 80. Nb3 {[%emt 0:00:00]} ({Don't play} 80. Kxc3 Kxa5 81. Re8 Rb5 $11) 80... Rh4 {[%emt 0:00:01]} 81. Kxc3 {[%emt 0:00:00]} Kc6 {[%emt 0:00:04]} 82. Re5 {[%emt 0:00:00]} Kd6 {[%emt 0:00:03]} 83. Rg5 {[%emt 0:00:06]} Rh3+ {[%emt 0:00:04]} 84. Kc4 {[%emt 0:00:05]} Rh1 {[%emt 0:00:03]} 85. Rd5+ {[%emt 0:00:06]} Ke6 {[%emt 0:00:03]} 86. Nd4+ {[%emt 0:00:03]} Kf6 {[%emt 0:00:01]} 87. Rf5+ {[%emt 0:00:07]} Ke7 {[%emt 0:00:09]} 88. Kd5 {[%emt 0:00:04]} Rd1 {[%emt 0:00:06]} 89. Rf3 {[%emt 0:00:12]} Rd2 {[%emt 0:00:56]} 90. Re3+ {[%emt 0:00:19]} Kd7 {[%emt 0:00:15]} 91. Ra3 {[%emt 0:00:36]} Rd1 {[%emt 0:00:26]} 92. Ra7+ {[%emt 0:00:05]} Kd8 {[%emt 0:00:10]} 93. Ke5 {[%emt 0:00:05]} Rd2 {[%emt 0:00:23]} 94. Nc6+ {[%emt 0:00:19]} Kc8 {[%emt 0:00:21]} 95. Ke6 {[%emt 0:00:21]} ({Better is} 95. Nb4 $14) 95... Rd6+ $1 {[%emt 0:00:29]} 1/2-1/2

[Event "Vojvodina Open 2024-A 2024"]
[Site "Novi Sad"]
[Date "2024.06.26"]
[Round "3.4"]
[White "Manish Anto Cristiano F"]
[Black "Harshavardhan G B"]
[Result "1/2-1/2"]
[ECO "E16"]
[WhiteElo "2307"]
[BlackElo "2433"]
[Annotator "TA"]
[PlyCount "68"]
[EventDate "2024.06.03"]
[EventType "swiss"]
[EventCountry "SRB"]
[SourceTitle "playchess.com"]
[Source "ChessBase"]
[SourceQuality "1"]
[TimeControl "40/5400+30:900+30"]

{[%evp 18,68,20,0,35,25,37,31,50,29,26,36,37,54,31,25,28,0,0,0,0,0,0,0,0,-3,0,0,43,43,43,43,57,60,75,72,75,68,72,67,77,5,11,5,5,6,5,0,0,0,5,0,0]} 1. d4 {[%emt 0:00:42]} Nf6 {[%emt 0:00:22]} 2. c4 {[%emt 0:00:36]} e6 {[%emt 0:00:30]} 3. Nf3 {[%emt 0:00:21]} Bb4+ {[%emt 0:00:32]} 4. Bd2 {[%emt 0:00:11]} c5 {[%emt 0:00:28]} 5. Bxb4 {[%emt 0:01:09]} cxb4 {[%emt 0:00:10]} 6. g3 {[%emt 0:01:06]} b6 {[%emt 0:00:18]} 7. Bg2 {[%emt 0:00:10]} Bb7 {[%emt 0:00:12]} 8. O-O {[%emt 0:00:41]} O-O {[%emt 0:00:16]} 9. a3 {[%emt 0:01:43]} bxa3 {[%emt 0:01:08]} 10. Rxa3 {[%emt 0:01:29][%cal Od4d5]} Nc6 {[%emt 0:02:36]} 11. Nc3 {[%emt 0:05:41]} d5 {[%emt 1:29:28]} 12. Ne5 {[%emt 0:03:40]} a5 {[%emt 0:00:00] White is slightly better.} 13. e3 {[%emt 0:09:23]} Rc8 {[%emt 0:00:00]} 14. cxd5 {[%emt 0:01:28]} Nxd5 {[%emt 0:00:00]} 15. Nxd5 {[%emt 0:02:29]} exd5 {[%emt 0:00:00]} 16. Nxc6 {[%emt 0:02:01]} Rxc6 {[%emt 0:00:00]} 17. Qb1 {[%emt 0:06:08]} Qd6 {[%emt 0:00:00] Repels b4} 18. Rc1 {[%emt 0:01:02]} Rfc8 {[%emt 0:00:00]} 19. Rxc6 {[%emt 0:00:24]} Rxc6 {[%emt 0:00:00]} 20. h4 {[%emt 0:00:22]} g6 {[%emt 0:00:00]} 21. Ra1 {[%emt 0:03:23][%cal Ba3a1,Ba1b1,Bb1b4][%mdl 32]} Rc8 {[%emt 0:00:00]} 22. b4 {[%emt 0:08:28]} Qxb4 {[%emt 0:00:00]} (22... axb4 $5 23. Qb2 h6 $11) 23. Qxb4 {[%emt 0:00:07]} axb4 $11 {[%emt 0:00:00][%mdl 4096] Endgame. KRB-KRB} 24. Rb1 {[%emt 0:00:04]} Bc6 {[%emt 0:00:00]} 25. Rxb4 {[%emt 0:00:27]} b5 {[%emt 0:00:00]} 26. Rb1 {[%emt 0:01:34] aiming for Rc1.} Rb8 {[%emt 0:00:00]} 27. Kf1 {[%emt 0:00:32] White is more active.} Kf8 {[%emt 0:00:00]} 28. Ke1 {[%emt 0:00:51]} Ke7 {[%emt 0:00:00]} 29. Kd2 {[%emt 0:00:06]} (29. Ra1 $16) 29... Ra8 $1 {[%emt 0:00:00] The position is equal.} 30. Kc2 {[%emt 0:04:39]} Ra2+ {[%emt 0:00:00]} 31. Rb2 {[%emt 0:00:07]} Ra1 {[%emt 0:00:00]} 32. Rb1 {[%emt 0:00:34]} Ra2+ {[%emt 0:00:00]} 33. Rb2 {[%emt 0:00:12]} Ra1 {[%emt 0:00:00]} 34. Rb1 {[%emt 0:02:13]} Ra2+ {[%emt 0:00:00] Weighted Error Value: White=0.11 (very precise) /Black=0.08 (flawless) .  Mistake:       	White=1     	---        Inaccurate:     	White=1     	Black=1      OK:         	White=10    	Black=8      Best:        	---       	Black=1      Strong:       	---       	Black=1} 1/2-1/2

[Event "Vojvodina Open 2024-A 2024"]
[Site "Novi Sad"]
[Date "2024.06.26"]
[Round "3.5"]
[White "Sedlak, Nikola"]
[Black "Ivanov, Mikhail M"]
[Result "1-0"]
[ECO "A34"]
[WhiteElo "2426"]
[BlackElo "2248"]
[Annotator "RC"]
[PlyCount "71"]
[EventDate "2024.06.03"]
[EventType "swiss"]
[EventCountry "SRB"]
[SourceTitle "playchess.com"]
[Source "ChessBase"]
[SourceQuality "1"]
[TimeControl "40/5400+30:900+30"]

1. Nf3 {[%emt 0:12:18]} Nf6 {[%emt 0:00:58]} 2. c4 {[%emt 0:00:41]} c5 {[%emt 0:02:07]} 3. Nc3 {[%emt 0:00:26]} e6 {[%emt 0:02:20]} 4. e4 {[%emt 0:02:18]} Nc6 {[%emt 0:02:35]} 5. Be2 {[%emt 0:01:20]} e5 {[%emt 0:03:05]} 6. O-O {[%emt 0:00:44]} d6 {[%emt 0:00:15]} 7. a3 {[%emt 0:03:28]} g6 {[%emt 0:05:12]} 8. b4 {[%emt 0:05:08]} Bg7 {[%emt 0:00:38]} 9. bxc5 {[%emt 0:02:52]} dxc5 {[%emt 0:00:18]} 10. d3 {[%emt 0:00:29]} O-O {[%emt 0:06:01]} 11. Nd5 {[%emt 0:01:01]} Nd7 {[%emt 0:09:22]} 12. Bg5 {[%emt 0:05:21]} f6 {[%emt 0:00:30]} 13. Bd2 {[%emt 0:02:27]} Rf7 {[%emt 0:01:48]} 14. h4 {[%emt 0:14:46]} h5 {[%emt 0:04:18]} 15. a4 {[%emt 0:04:03]} Nf8 {[%emt 0:08:59]} 16. a5 {[%emt 0:02:24]} Ne6 {[%emt 0:00:59]} 17. Re1 {[%emt 0:02:35]} g5 {[%emt 0:12:25]} 18. Nh2 {[%emt 0:05:05]} g4 {[%emt 0:00:25]} 19. Nf1 {[%emt 0:02:55]} Ncd4 {[%emt 0:11:52]} 20. Ng3 {[%emt 0:00:32]} Nxe2+ {[%emt 0:06:28]} 21. Qxe2 {[%emt 0:00:45]} Nd4 {[%emt 0:00:07]} 22. Qd1 {[%emt 0:00:06]} Bh8 {[%emt 0:07:38]} 23. Be3 {[%emt 0:02:00]} Rh7 {[%emt 0:01:17]} 24. Bxd4 {[%emt 0:07:19]} cxd4 {[%emt 0:02:50]} 25. Re2 {[%emt 0:06:17]} Bg7 {[%emt 0:02:05]} 26. Rb2 {[%emt 0:01:30]} Bf8 {[%emt 0:00:36]} 27. Rab1 {[%emt 0:06:14]} Kh8 {[%emt 0:00:41]} 28. Rb5 {[%emt 0:01:05]} Rb8 {[%emt 0:06:38]} 29. R1b2 {[%emt 0:01:37]} Be6 {[%emt 0:00:46]} 30. Qb1 {[%emt 0:00:20]} f5 {[%emt 0:01:04]} 31. exf5 {[%emt 0:01:38]} Bxd5 {[%emt 0:00:16]} 32. cxd5 {[%emt 0:00:19]} Qxh4 {[%emt 0:00:16]} 33. Rxb7 {[%emt 0:00:19]} Rbxb7 {[%emt 0:00:46]} 34. Rxb7 {[%emt 0:00:07]} Rxb7 {[%emt 0:01:16]} 35. Qxb7 {[%emt 0:00:10]} Qg5 {[%emt 0:00:07]} 36. Qf7 {[%emt 0:01:53]} 1-0

[Event "Vojvodina Open 2024-A 2024"]
[Site "Novi Sad"]
[Date "2024.06.26"]
[Round "3.6"]
[White "Drazic, Sinisa"]
[Black "Harsh Suresh"]
[Result "0-1"]
[ECO "C68"]
[WhiteElo "2263"]
[BlackElo "2426"]
[Annotator "RC"]
[PlyCount "98"]
[EventDate "2024.06.03"]
[EventType "swiss"]
[EventCountry "SRB"]
[SourceTitle "playchess.com"]
[Source "ChessBase"]
[SourceQuality "1"]
[TimeControl "40/5400+30:900+30"]

1. e4 {[%emt 0:01:33]} e5 {[%emt 0:00:33]} 2. Nf3 {[%emt 0:00:09]} Nc6 {[%emt 0:00:10]} 3. Bb5 {[%emt 0:00:15]} a6 {[%emt 0:00:15]} 4. Bxc6 {[%emt 0:00:04]} dxc6 {[%emt 0:00:08]} 5. d3 {[%emt 0:00:40]} f6 {[%emt 0:10:52]} 6. Be3 {[%emt 0:00:08]} c5 {[%emt 0:03:30]} 7. Nbd2 {[%emt 0:00:35]} Be6 {[%emt 0:00:47]} 8. Qe2 {[%emt 0:02:53]} Qd7 {[%emt 0:02:19]} 9. a3 {[%emt 0:02:22]} b6 {[%emt 0:02:06]} 10. c3 {[%emt 0:01:45]} Bd6 {[%emt 0:19:10]} 11. h3 {[%emt 0:01:25]} Ne7 {[%emt 0:01:48]} 12. d4 {[%emt 0:03:34]} cxd4 {[%emt 0:04:01]} 13. cxd4 {[%emt 0:00:02]} exd4 {[%emt 0:00:49]} 14. Nxd4 {[%emt 0:00:13]} Bf7 {[%emt 0:00:38]} 15. O-O {[%emt 0:02:43]} c5 {[%emt 0:04:21]} 16. Nf5 {[%emt 0:10:39]} Nxf5 {[%emt 0:01:04]} 17. exf5 {[%emt 0:00:02]} O-O {[%emt 0:00:42]} 18. Qg4 {[%emt 0:09:00]} h5 {[%emt 0:10:25]} 19. Qf3 {[%emt 0:01:03]} Be5 {[%emt 0:00:20]} 20. Rad1 {[%emt 0:00:31]} Qb5 {[%emt 0:01:47]} 21. Ne4 {[%emt 0:03:00]} Rad8 {[%emt 0:01:46]} 22. Ng3 {[%emt 0:06:34]} Bc4 {[%emt 0:08:05]} 23. Rfe1 {[%emt 0:07:40]} h4 {[%emt 0:00:25]} 24. a4 {[%emt 0:05:07]} Qb4 {[%emt 0:10:42]} 25. Nh5 {[%emt 0:08:55]} Bd5 {[%emt 0:00:58]} 26. Qe2 {[%emt 0:00:02]} Qc4 {[%emt 0:02:52]} 27. Qxc4 {[%emt 0:10:57]} Bxc4 {[%emt 0:00:02]} 28. a5 {[%emt 0:00:05]} Rxd1 {[%emt 0:03:13]} 29. Rxd1 {[%emt 0:00:00]} Be2 {[%emt 0:00:09]} 30. Rd7 {[%emt 0:00:08]} Bxh5 {[%emt 0:00:07]} 31. axb6 {[%emt 0:00:04]} Be8 {[%emt 0:00:45]} 32. Rd2 {[%emt 0:07:41]} Bc6 {[%emt 0:01:34]} 33. Bxc5 {[%emt 0:00:11]} Re8 {[%emt 0:00:12]} 34. Be3 {[%emt 0:00:34]} Be4 {[%emt 0:02:06]} 35. f4 {[%emt 0:02:11]} Bb8 {[%emt 0:00:08]} 36. Bf2 {[%emt 0:00:40]} Bxf5 {[%emt 0:01:40]} 37. Rd4 {[%emt 0:00:28]} Kf7 {[%emt 0:01:22]} 38. Bxh4 {[%emt 0:00:22]} Re4 {[%emt 0:01:27]} 39. Rd8 {[%emt 0:00:08]} Bxf4 {[%emt 0:00:17]} 40. Bf2 {[%emt 0:00:00]} Rb4 {[%emt 0:00:00]} 41. g4 {[%emt 0:01:12]} Be6 {[%emt 0:01:37]} 42. Bc5 {[%emt 0:02:06]} Rxb2 {[%emt 0:00:17]} 43. Rf8+ {[%emt 0:00:10]} Kg6 {[%emt 0:00:02]} 44. Re8 {[%emt 0:00:08]} Bd5 {[%emt 0:00:17]} 45. Rd8 {[%emt 0:00:12]} Be4 {[%emt 0:00:49]} 46. h4 {[%emt 0:00:39]} Bg3 {[%emt 0:00:15]} 47. h5+ {[%emt 0:00:54]} Kh7 {[%emt 0:00:21]} 48. Kf1 {[%emt 0:00:11]} Bg2+ {[%emt 0:00:19]} 49. Kg1 {[%emt 0:00:10]} Bf3 {[%emt 0:00:07]} 0-1